bitfinex-derivatives/quotes_BNBF0:USTF0_20250425
["timestamp","ask_amount","ask_price","bid_price","bid_amount"]
[1745590495344,1.25503545,608.1,605.36,0.30299052]
[1745590496540,1.25503545,608.17,605.36,0.30299052]
[1745590496741,0.28693458,608.09,605.36,0.30299052]
[1745590496937,1.25503545,608.17,605.36,0.30299052]
[1745590498442,0.28691921,608.16,605.36,0.30299052]
[1745590501261,1.25503545,608.91,605.36,0.30299052]
[1745590501955,1.25503545,608.91,605.35,1.37281279]
[1745590502254,1.25503545,608.91,605.36,0.30291599]
[1745590502553,0.28684589,608.9,605.36,0.30291599]
[1745590504353,1.25503545,609.06,605.36,0.30291599]
[1745590504855,1.25503545,608.75,605.36,0.30291599]
[1745590506452,1.25503545,608.75,605.35,1.37282343]
[1745590506657,1.25503545,608.75,605.36,0.30293364]
[1745590507654,1.25503545,608.73,605.36,0.30293364]
[1745590509357,1.25503545,608.73,605.37,1.491]
[1745590509555,1.25503545,608.73,605.38,0.302913]
[1745590511059,1.25503545,608.73,605.37,1.491]
[1745590511255,1.25503545,608.73,605.38,0.30291752]
[1745590512156,1.25503545,608.63,605.38,0.30291752]
[1745590512460,1.25503545,608.63,605.37,1.491]
[1745590512662,1.25503545,608.63,605.38,0.3029134]
[1745590513460,0.28684589,608.62,605.38,0.3029134]
[1745590513656,0.28684589,608.62,605.39,0.3029134]
[1745590513955,0.28684589,608.62,605.4,0.3029134]
[1745590514161,0.28684589,608.62,605.41,0.3029134]
[1745590514362,1.25503545,608.59,605.38,0.3029134]
[1745590514561,1.25503545,608.59,605.39,0.3029134]
[1745590514756,1.25503545,608.59,605.38,0.3029134]
[1745590515558,1.25503545,608.59,605.37,1.491]
[1745590515861,1.25503545,608.59,605.38,0.30295157]
[1745590516358,2.13721831,609.45,605.38,0.30295157]
[1745590516359,1.25503545,608.16,605.38,0.30295157]
[1745590517162,1.25503545,608.16,605.37,1.491]
[1745590517363,1.25503545,608.16,605.38,0.30300987]
[1745590517664,0.28694878,608.15,605.39,1.33]
[1745590517963,0.28694878,608.15,605.4,0.30300539]
[1745590519064,0.28694878,608.15,605.4,1.28400539]
[1745590519262,1.25503545,608.16,605.41,0.30300539]
[1745590519562,1.25503545,607.88,605.4,0.981]
[1745590520565,0.28697599,607.87,605.4,0.981]
[1745590522368,1.25503545,608.84,605.4,0.981]
[1745590523570,0.28686717,608.83,605.4,0.981]
[1745590523968,1.25503545,608.74,605.4,0.981]
[1745590527069,1.25503545,608.58,605.41,0.30303157]
[1745590528170,1.25503545,608.58,605.4,0.981]
[1745590528470,1.25503545,608.58,605.41,0.30307564]
[1745590529173,1.25503545,607.63,605.41,0.30307564]
[1745590529566,0.28706003,607.62,605.41,0.30307564]
[1745590529770,0.28706003,607.62,605.42,0.30312017]
[1745590529967,0.28706003,607.62,605.41,0.30312017]
[1745590530272,0.28706003,607.62,605.4,1.26806003]
[1745590530573,0.28706003,607.62,605.41,0.3031192]
[1745590530973,0.28706003,607.62,605.4,1.26806003]
[1745590531474,0.28706003,607.62,605.41,0.30310362]
[1745590531774,1.25503545,607.49,605.41,0.30310362]
[1745590531974,1.25503545,607.49,605.4,2.64806003]
[1745590532169,1.25503545,607.49,605.41,0.30312093]
[1745590533873,1.25503545,607.49,605.4,2.64806003]
[1745590534288,1.25503545,607.5,605.4,2.361]
[1745590534579,0.2870695,607.48,605.4,2.6480695]
[1745590535276,0.2870695,607.48,605.4,3.8870695]
[1745590537576,1.25503545,608.1,605.4,3.6]
[1745590538677,0.28699729,608.09,605.4,3.88699729]
[1745590540374,1.25503545,608.14,605.4,3.6]
[1745590541274,1.25503545,608.14,605.41,0.30310028]
[1745590541580,0.28699019,608.13,605.41,0.30310028]
[1745590542876,1.25503545,607.54,605.4,3.88699019]
[1745590545281,1.25503545,607.51,605.4,3.88699019]
[1745590546287,1.25503545,607.51,605.4,3.6]
[1745590546583,0.28709792,607.5,605.4,3.6]
[1745590547583,0.28709792,607.5,605.4,3.88709792]
[1745590548584,0.28709792,607.5,605.4,3.6]
[1745590551588,1.25503545,607.28,605.4,3.6]
[1745590553593,0.28714648,607.27,605.4,3.6]
[1745590555397,1.25503545,607.48,605.4,3.6]
[1745590556596,0.28714174,607.47,605.4,3.6]
[1745590557194,1.25503545,607.2,605.4,3.6]
[1745590560610,1.25503545,607.22,605.4,3.6]
[1745590562497,1.25503545,607.18,605.4,3.6]
[1745590564407,1.25503545,607.78,605.4,3.6]
[1745590565413,0.28709673,607.77,605.4,3.6]
[1745590567018,1.25503545,607.48,605.4,3.6]
[1745590568518,0.28717492,607.47,605.4,3.6]
[1745590569019,1.25503545,607.21,605.4,3.6]
[1745590571324,1.25503545,607.16,605.4,3.6]
[1745590574322,1.25503545,607.25,605.4,3.6]
[1745590574817,0.28721284,607.15,605.4,3.6]
[1745590575017,1.25503545,607.25,605.4,3.6]
[1745590576622,0.28720217,607.24,605.4,3.6]
[1745590578117,1.25503545,607.22,605.4,3.6]
[1745590580623,0.28721284,607.21,605.4,3.6]
[1745590581118,1.25503545,607.24,605.4,3.6]
[1745590581815,1.25503545,607.24,605.4,5.127]
[1745590582729,1.25503545,607.45,605.4,5.127]
[1745590585127,1.25503545,607.04,605.4,5.127]
[1745590587430,1.25503545,606.91,605.4,5.127]
[1745590590230,1.25503545,606.88,605.4,5.127]
[1745590593033,1.25503545,606.74,605.4,5.127]
[1745590594530,0.28731243,606.73,605.4,5.127]
[1745590597333,1.25503545,607.02,605.4,5.127]
[1745590597634,0.28726737,606.72,605.4,5.127]
[1745590597934,1.25503545,607.02,605.4,5.127]
[1745590599034,1.25503545,607.14,605.4,5.127]
[1745590599835,0.28725314,607.13,605.4,5.127]
[1745590600337,1.25503545,607.14,605.4,5.127]
[1745590600637,0.28725314,607.12,605.4,5.127]
[1745590603338,1.25503545,607.14,605.4,5.127]
[1745590603939,1.25503545,607.1,605.4,5.127]
[1745590604633,0.28727685,607.09,605.4,5.127]
[1745590606236,1.25503545,606.98,605.4,5.127]
[1745590607642,0.28730532,606.97,605.4,5.127]
[1745590608844,1.25503545,606.83,605.4,5.127]
[1745590610544,0.28734683,606.82,605.4,5.127]
[1745590611649,1.25503545,606.66,605.4,5.127]
[1745590612744,0.287367,606.65,605.4,5.127]
[1745590615349,1.25503545,606.86,605.4,5.127]
[1745590615649,0.287367,606.64,605.4,5.127]
[1745590615949,1.25503545,606.86,605.4,5.127]
[1745590616651,0.28735039,606.85,605.4,5.127]
[1745590618350,1.25503545,606.91,605.4,5.127]
[1745590619454,1.25503545,607.02,605.4,5.127]
[1745590619644,0.28731836,606.9,605.4,5.127]
[1745590619847,1.25503545,607.02,605.4,5.127]
[1745590621353,0.28728634,607.01,605.4,5.127]
[1745590621655,1.25503545,606.84,605.4,5.127]
[1745590624959,1.25503545,606.71,605.4,5.127]
[1745590625653,0.28732311,606.7,605.4,5.127]
[1745590630359,2.13721831,607.78,605.4,5.127]
[1745590630360,1.25503545,606.75,605.4,5.127]
[1745590630662,0.287367,606.69,605.4,5.127]
[1745590632963,1.25503545,606.64,605.4,5.127]
[1745590633557,0.28741684,606.63,605.4,5.127]
[1745590633864,0.28741684,606.63,605.4,1.527]
[1745590635666,1.25503545,606.46,605.4,1.527]
[1745590636660,0.2874572,606.45,605.4,1.527]
[1745590638767,0.2874572,606.45,605.33,3.881]
[1745590641067,0.2874572,606.45,605.33,5.407]
[1745590642468,1.25503545,606.7,605.33,5.407]
[1745590642767,0.28742871,606.44,605.33,5.407]
[1745590643067,1.25503545,606.7,605.33,5.407]
[1745590643767,0.28743702,606.69,605.33,5.407]
[1745590644165,1.25503545,606.66,605.33,5.407]
[1745590646676,1.25503545,606.59,605.33,5.407]
[1745590648670,0.28737175,606.58,605.33,5.407]
[1745590648971,0.28737175,606.58,604.62,0.28737175]
[1745590650569,0.28737175,606.58,604.63,0.30347704]
[1745590650771,0.28737175,606.58,604.62,0.28737175]
[1745590651372,1.25503545,607.06,604.06,1.0468008]
[1745590651565,1.25503545,607.06,604.07,0.3034757]
[1745590651770,1.25503545,607.06,604.62,0.2874667]
[1745590651966,1.25503545,607.06,604.06,2.3498008]
[1745590652274,1.25503545,607.06,604.07,0.30348805]
[1745590652671,0.2874667,607.05,604.08,0.2874667]
[1745590652867,0.2874667,607.05,604.08,2.9384667]
[1745590653068,0.2874667,607.05,604.09,0.30348418]
[1745590653276,0.2874667,607.05,604.18,1.0468008]
[1745590653277,1.25503545,606.94,604.18,1.0468008]
[1745590653471,1.25503545,606.94,604.19,0.30348418]
[1745590654173,1.25503545,606.94,604.18,1.0468008]
[1745590654375,1.25503545,606.94,604.19,0.30351613]
[1745590655476,1.25503545,607.0,604.19,0.30351613]
[1745590655669,0.28748095,606.93,604.15,0.28748095]
[1745590655872,0.28748095,606.93,604.16,0.30351613]
[1745590656075,0.28748095,606.93,604.17,0.30351613]
[1745590656278,0.28748095,606.93,604.18,0.30351613]
[1745590656475,0.28748095,606.93,604.19,0.30351613]
[1745590656677,0.28748095,606.93,604.2,0.30351613]
[1745590656876,0.28748095,606.93,604.21,0.30351613]
[1745590657071,0.28748095,606.93,604.22,0.30351613]
[1745590657273,0.28748095,606.93,604.23,0.30346221]
[1745590657477,1.25503545,607.0,604.24,0.30346221]
[1745590657677,1.25503545,607.0,604.25,0.30346221]
[1745590657878,1.25503545,607.0,604.14,0.30346221]
[1745590658079,1.25503545,607.0,604.09,2.15091635]
[1745590658080,1.25503545,606.85,604.33,1.0468008]
[1745590658273,1.25503545,606.85,604.34,0.30346221]
[1745590658680,0.28741447,606.84,604.34,0.30346221]
[1745590660579,0.28741447,606.84,604.44,1.0468008]
[1745590660878,0.28741447,606.84,604.45,0.30346221]
[1745590661978,0.28741447,606.84,604.46,0.30346221]
[1745590662179,0.28741447,606.84,604.45,0.30346221]
[1745590662378,0.28741447,606.84,604.46,0.30346221]
[1745590662575,0.28741447,606.84,604.47,0.30346221]
[1745590662773,0.28741447,606.84,604.45,0.30346221]
[1745590662978,0.28741447,606.84,604.46,0.30346221]
[1745590663180,0.28741447,606.84,604.44,1.0468008]
[1745590663476,1.25503545,607.22,604.5,1.0468008]
[1745590663678,1.25503545,607.22,604.51,0.30335159]
[1745590664679,1.25503545,607.22,604.5,1.0468008]
[1745590664979,0.2873409,607.21,604.51,0.30335935]
[1745590666180,0.2873409,607.21,604.4,1.0468008]
[1745590666380,0.2873409,607.21,604.41,0.30334694]
[1745590668580,0.2873409,607.21,604.42,0.30334694]
[1745590668781,0.2873409,607.21,604.32,0.30334694]
[1745590668981,0.2873409,607.21,604.41,1.023]
[1745590669174,0.2873409,607.21,604.42,0.30334694]
[1745590669379,0.2873409,607.21,604.43,0.30333965]
[1745590669576,0.2873409,607.21,604.42,0.30333965]
[1745590669776,0.2873409,607.21,604.43,0.30333965]
[1745590669977,0.2873409,607.21,604.44,0.30333965]
[1745590670181,0.2873409,607.21,604.45,0.30333965]
[1745590670481,0.2873409,607.21,604.46,0.30333965]
[1745590670677,0.2873409,607.21,604.46,1.489]
[1745590670883,0.2873409,607.21,604.47,0.30333965]
[1745590672383,1.25503545,607.73,604.47,0.30333965]
[1745590672784,0.28729464,607.72,604.47,0.30333965]
[1745590675382,0.28729464,607.72,604.46,1.489]
[1745590675585,0.28729464,607.72,604.47,0.30337453]
[1745590676288,1.25503545,607.43,604.47,0.30337453]
[1745590676887,1.25503545,607.43,604.46,1.489]
[1745590677190,1.25503545,607.43,604.47,0.30337482]
[1745590678389,1.25503545,607.43,604.46,1.489]
[1745590678590,1.25503545,607.43,604.47,0.30335059]
[1745590678791,1.25503545,607.43,604.47,1.80235059]
[1745590679089,1.25503545,607.43,604.48,0.30335059]
[1745590679291,1.25503545,607.47,604.48,0.30335059]
[1745590679992,1.25503545,607.47,604.47,1.499]
[1745590680188,1.25503545,607.47,604.48,0.30334793]
[1745590680392,2.13721831,607.64,604.48,0.30334793]
[1745590680393,1.25503545,607.55,604.48,0.30334793]
[1745590681093,1.25503545,607.55,604.47,1.499]
[1745590681294,1.25503545,607.55,604.48,0.30334865]
[1745590681594,0.28728871,607.54,604.48,0.30334865]
[1745590681795,1.25503545,607.52,604.48,0.30334865]
[1745590682495,1.25503545,607.52,604.47,1.499]
[1745590682694,1.25503545,607.52,604.48,0.30334977]
[1745590683999,1.25503545,607.51,604.49,1.0468008]
[1745590684200,1.25503545,607.51,604.5,0.30334977]
[1745590687010,1.25503545,607.35,604.5,1.35015057]
[1745590687209,1.25503545,607.35,604.51,0.30340265]
[1745590687812,0.28734683,607.34,604.51,0.30340265]
[1745590688313,0.28734683,607.34,604.52,0.30340265]
[1745590688513,0.28734683,607.34,604.53,0.30340265]
[1745590688715,0.28734683,607.34,604.54,0.30340265]
[1745590688912,0.28734683,607.34,604.51,0.30340265]
[1745590689108,0.28734683,607.34,604.47,1.499]
[1745590689109,1.25503545,606.78,604.7,1.0468008]
[1745590689311,1.25503545,606.78,604.71,0.30340265]
[1745590690313,1.25503545,606.78,604.72,0.30339674]
[1745590690511,1.25503545,606.78,604.71,0.30339674]
[1745590690710,1.25503545,606.82,604.76,1.0468008]
[1745590691116,1.25503545,606.82,604.77,0.3033948]
[1745590691316,1.25503545,606.82,604.76,1.0468008]
[1745590691517,1.25503545,606.82,604.77,0.30339441]
[1745590691816,0.28736463,606.81,604.78,0.30338513]
[1745590692016,0.28736463,606.81,604.77,0.30338513]
[1745590692316,0.28736463,606.81,604.78,1.33338513]
[1745590692517,0.28736463,606.81,604.79,0.30338513]
[1745590693311,0.28736463,606.81,604.8,0.30337983]
[1745590693519,1.25503545,607.0,604.79,0.30337983]
[1745590693718,1.25503545,607.0,604.78,1.03]
[1745590693915,1.25503545,607.0,604.79,0.30337948]
[1745590694718,1.25503545,607.0,604.78,1.03]
[1745590694719,0.28733615,606.99,604.78,1.03]
[1745590694922,1.5423716,606.99,604.79,0.30337764]
[1745590696224,1.5423716,606.99,604.78,1.03]
[1745590698525,0.28733615,606.99,604.78,1.03]
[1745590698724,0.28733615,606.99,604.79,0.30336626]
[1745590698925,0.28733615,606.99,604.78,1.03]
[1745590699122,0.28733615,606.99,604.79,0.3033731]
[1745590699522,0.28733615,606.99,604.78,1.03]
[1745590699722,0.28733615,606.99,604.79,0.30337405]
[1745590700626,0.28733615,606.99,604.79,1.80537405]
[1745590700925,0.28733615,606.99,604.79,1.502]
[1745590701429,1.25503545,606.89,604.79,2.5488008]
[1745590702826,0.28734802,606.88,604.79,2.5488008]
[1745590704529,0.28734802,606.88,604.79,1.502]
[1745590705428,1.25503545,607.1,604.79,1.502]
[1745590706529,1.25503545,607.06,604.79,1.502]
[1745590708624,0.28731362,607.05,604.79,1.502]
[1745590709927,0.28731362,607.05,604.8,0.30335814]
[1745590711430,1.25503545,607.07,604.8,0.30335814]
[1745590711729,1.25503545,606.83,604.84,1.0468008]
[1745590711929,1.25503545,606.83,604.85,0.30335814]
[1745590712829,0.28733022,606.82,604.85,0.30335814]
[1745590713226,0.28733022,606.82,604.86,1.384]
[1745590714428,1.25503545,606.83,604.87,1.256]
[1745590715535,1.25503545,606.83,604.88,0.30338985]
[1745590715732,0.28735751,606.82,604.87,1.256]
[1745590717436,1.25503545,606.74,604.87,1.256]
[1745590719139,1.25503545,606.74,604.88,0.95]
[1745590719938,1.25503545,606.81,604.88,0.95]
[1745590720743,0.28736581,606.8,604.88,0.95]
[1745590723445,1.25503545,607.14,604.88,0.95]
[1745590724646,0.28731718,607.13,604.88,0.95]
[1745590725747,0.28731718,607.13,604.89,1.434]
[1745590729447,1.25503545,607.23,604.89,1.434]
[1745590729651,1.25503545,607.2,604.89,1.434]
[1745590730753,0.28731836,607.19,604.89,1.434]
[1745590731557,1.25503545,607.06,604.89,1.434]
[1745590733756,0.28734683,607.05,604.89,1.434]
[1745590734355,1.25503545,606.67,604.89,1.434]
[1745590736261,1.25503545,606.67,604.89,1.42897399]
[1745590737962,1.25503545,606.72,604.89,1.42897399]
[1745590739763,0.28739667,606.71,604.89,1.42897399]
[1745590740664,1.25503545,606.46,604.9,1.093]
[1745590741765,0.28744058,606.45,604.9,1.093]
[1745590744462,1.25503545,607.14,604.9,1.093]
[1745590744665,1.25503545,607.14,604.9,2.537]
[1745590745569,1.25503545,606.83,604.9,2.537]
[1745590747773,1.25503545,607.07,604.9,2.537]
[1745590748671,0.28732785,607.06,604.9,2.537]
[1745590750068,1.25503545,607.03,604.9,2.537]
[1745590751075,1.25503545,607.03,604.9,4.038]
[1745590751675,0.28734683,607.02,604.9,4.038]
[1745590752574,1.25503545,606.99,604.9,4.038]
[1745590753676,0.28734209,606.98,604.9,4.038]
[1745590755676,1.25503545,606.8,604.9,4.038]
[1745590759277,0.28734209,606.98,604.9,4.038]
[1745590763786,1.25503545,606.95,604.9,4.038]
[1745590765980,1.25503545,606.98,604.9,4.038]
[1745590766787,0.28732429,606.97,604.9,4.038]
[1745590771388,1.25503545,607.13,604.9,4.038]
[1745590771785,0.28728753,606.96,604.9,4.038]
[1745590771983,1.25503545,607.13,604.9,4.038]
[1745590772790,0.28726618,607.12,604.9,4.038]
[1745590772987,0.28726618,607.12,604.91,0.30329256]
[1745590774288,0.28726618,607.12,604.9,1.501]
[1745590774488,1.25503545,607.13,604.91,0.30330928]
[1745590774681,1.25503545,607.13,604.9,1.501]
[1745590775289,1.25503545,607.13,604.91,0.30334031]
[1745590775689,0.28729701,607.12,604.91,0.30334031]
[1745590775889,0.28729701,607.12,604.92,0.30335673]
[1745590776087,0.28729701,607.12,604.91,0.30335673]
[1745590776383,0.28729701,607.12,604.93,0.30335673]
[1745590776587,0.28729701,607.12,604.92,1.033]
[1745590777187,0.28729701,607.12,604.92,2.617]
[1745590778087,1.25503545,606.94,604.92,2.617]
[1745590780488,1.25503545,606.91,604.92,2.617]
[1745590782893,1.25503545,606.89,604.92,2.617]
[1745590783994,0.28732311,606.88,604.92,2.617]
[1745590785090,1.25503545,606.81,604.92,2.617]
[1745590786099,1.25503545,606.81,604.92,3.743]
[1745590787989,1.25503545,606.87,604.92,3.743]
[1745590790299,0.28732311,606.88,604.92,3.743]
[1745590792404,1.25503545,607.07,604.92,3.743]
[1745590792703,1.25503545,606.84,604.92,5.365]
[1745590793704,0.28735039,606.83,604.92,5.365]
[1745590795206,1.25503545,606.69,604.92,5.365]
[1745590798414,1.25503545,606.71,604.92,5.365]
[1745590799806,0.28738954,606.7,604.92,5.365]
[1745590801609,1.25503545,606.71,604.92,5.365]
[1745590802801,0.28736581,606.7,604.92,5.365]
[1745590804508,1.25503545,607.84,604.92,5.365]
[1745590805407,1.25503545,607.6,604.92,5.365]
[1745590805702,0.28726026,607.59,604.92,5.365]
[1745590808410,1.25503545,607.28,604.92,5.365]
[1745590811613,1.25503545,606.68,604.92,5.365]
[1745590813611,1.25503545,606.6,604.92,5.365]
[1745590814815,0.28739548,606.59,604.92,5.365]
[1745590816518,1.25503545,606.87,604.92,5.365]
[1745590817214,2.13721831,607.61,604.92,5.365]
[1745590817215,1.25503545,606.97,604.92,5.365]
[1745590819814,1.25503545,607.01,604.92,5.365]
[1745590820822,0.2873326,607.0,604.92,5.365]
[1745590821921,1.25503545,606.99,604.92,5.365]
[1745590823522,1.25503545,606.87,604.92,5.365]
[1745590825424,1.25503545,606.48,604.92,5.365]
[1745590827923,1.25503545,606.35,604.92,5.365]
[1745590830826,1.25503545,606.37,604.92,5.365]
[1745590833328,0.28746314,606.38,604.92,5.365]
[1745590834527,1.25503545,606.4,604.92,5.365]
[1745590836128,0.28744533,606.44,604.92,5.365]
[1745590843730,1.25503545,606.92,604.92,5.365]
[1745590844930,0.28739785,606.91,604.92,5.365]
[1745590846031,1.25503545,606.86,604.92,5.365]
[1745590846931,0.28740497,606.85,604.92,5.365]
[1745590849233,1.25503545,606.83,604.92,5.365]
[1745590851535,0.28726144,606.84,604.92,5.365]
[1745590851536,1.25503545,606.54,604.92,5.365]
[1745590853838,0.28743583,606.53,604.92,5.365]
[1745590855134,1.25503545,606.48,604.92,5.365]
[1745590857535,0.28743583,606.53,604.92,5.365]
[1745590859942,1.25503545,606.52,604.92,5.365]
[1745590862544,0.28743583,606.53,604.92,5.365]
[1745590862545,1.25503545,606.51,604.92,5.365]
[1745590864751,0.28747976,606.5,604.92,5.365]
[1745590867455,1.25503545,606.61,604.92,5.365]
[1745590867756,0.28747264,606.49,604.92,5.365]
[1745590867956,1.25503545,606.61,604.92,5.365]
[1745590868259,0.28747264,606.48,604.92,5.365]
[1745590868650,1.25503545,606.58,604.92,5.365]
[1745590868851,0.28747264,606.47,604.92,5.365]
[1745590869150,1.25503545,606.58,604.92,5.365]
[1745590869453,0.2874667,606.46,604.92,5.365]
[1745590869759,1.25503545,606.58,604.92,5.365]
[1745590869956,0.2874572,606.45,604.92,5.365]
[1745590870358,1.25503545,606.58,604.92,5.365]
[1745590870556,0.28745245,606.44,604.92,5.365]
[1745590870856,1.25503545,606.58,604.92,5.365]
[1745590871654,1.25503545,606.8,604.92,5.365]
[1745590871859,0.28745245,606.57,604.92,5.365]
[1745590872154,1.25503545,606.8,604.92,5.365]
[1745590872357,0.28745958,606.56,604.92,5.365]
[1745590872659,1.25503545,606.8,604.92,5.365]
[1745590873661,0.28745958,606.79,604.92,5.365]
[1745590874661,1.25503545,606.48,604.92,5.365]
[1745590876264,1.25503545,606.71,604.92,5.365]
[1745590877563,1.25503545,606.64,604.92,5.365]
[1745590878465,1.25503545,606.69,604.92,5.365]
[1745590880467,1.25503545,606.32,604.92,5.365]
[1745590882869,0.28730887,606.78,604.92,5.365]
[1745590885064,0.28730887,606.78,604.92,4.239]
[1745590885468,1.25503545,606.82,604.92,4.239]
[1745590885769,1.25503545,606.48,604.92,4.239]
[1745590886869,0.28754033,606.47,604.92,4.239]
[1745590888571,1.25503545,606.58,604.92,5.654]
[1745590888773,0.28754271,606.46,604.92,5.654]
[1745590889068,1.25503545,606.58,604.92,5.654]
[1745590889771,0.28753558,606.57,604.92,5.654]
[1745590890767,1.25503545,606.5,604.92,5.654]
[1745590892772,0.28755221,606.49,604.92,5.654]
[1745590894473,1.25503545,606.5,604.92,5.654]
[1745590894673,1.25503545,606.52,604.92,5.654]
[1745590895777,0.28754984,606.51,604.92,5.654]
[1745590897377,1.25503545,606.46,604.92,5.654]
[1745590898874,0.28755696,606.45,604.92,5.654]
[1745590900578,1.25503545,606.66,604.92,5.654]
[1745590901779,0.2875332,606.65,604.92,5.654]
[1745590902583,1.25503545,606.51,604.92,5.654]
[1745590904577,1.25503545,606.13,604.92,5.654]
[1745590907085,1.25503545,606.22,604.92,5.654]
[1745590909086,0.28756053,606.5,604.92,5.654]
[1745590909585,1.25503545,606.91,604.92,5.654]
[1745590910885,0.28747264,606.9,604.92,5.654]
[1745590911685,1.25503545,606.81,604.92,5.654]
[1745590912786,0.28748451,606.8,604.92,5.654]
[1745590913682,1.25503545,606.74,604.92,5.654]
[1745590915884,0.28749282,606.73,604.92,5.654]
[1745590916187,1.25503545,606.58,604.92,5.654]
[1745590918892,1.25503545,606.48,604.92,5.654]
[1745590922398,2.13721831,606.15,604.92,5.654]
[1745590922589,1.25503545,606.04,604.92,5.654]
[1745590925195,0.28757122,606.1,604.92,5.654]
[1745590927294,0.28757122,606.1,604.13,1.0468008]
[1745590927699,0.28757122,606.1,604.07,0.28760925]
[1745590928893,0.28757122,606.1,603.55,1.0468008]
[1745590929091,0.28757122,606.1,603.56,0.30385446]
[1745590929693,0.28757122,606.1,603.57,0.28774837]
[1745590929899,0.28757122,606.1,603.58,0.30385446]
[1745590930200,0.28757122,606.1,603.59,1.568]
[1745590930398,0.28757122,606.1,603.6,0.30385446]
[1745590930598,2.13721831,607.33,603.6,0.30385446]
[1745590930599,1.25503545,606.05,603.64,1.0468008]
[1745590930898,1.25503545,606.05,603.65,0.30385446]
[1745590931099,1.25503545,606.05,603.65,1.97585446]
[1745590931299,1.25503545,606.05,603.66,0.30387511]
[1745590931493,1.25503545,606.05,603.65,1.672]
[1745590933099,0.28774837,606.09,603.65,1.672]
[1745590933499,1.25503545,606.39,603.65,1.672]
[1745590933800,0.28785429,606.08,603.65,1.672]
[1745590934101,1.25503545,606.39,603.65,1.672]
[1745590934806,0.28781738,606.38,603.65,1.672]
[1745590935706,0.28781738,606.38,603.66,0.30393871]
[1745590936506,1.25503545,606.47,603.66,0.30393871]
[1745590936804,0.28781858,606.37,603.66,0.30393871]
[1745590937306,1.25503545,606.47,603.66,0.30393871]
[1745590938507,1.25503545,606.29,603.66,0.30393871]
[1745590938807,1.25503545,606.29,603.67,0.30386277]
[1745590939006,1.25503545,606.29,603.66,0.30386277]
[1745590939205,1.25503545,606.29,603.68,0.30386277]
[1745590939506,1.25503545,606.29,603.69,0.303849]
[1745590939707,1.25503545,606.29,603.65,1.672]
[1745590940001,1.25503545,606.29,603.66,0.30387439]
[1745590940306,1.25503545,606.29,603.67,0.30387315]
[1745590940507,1.25503545,606.29,603.68,0.30385986]
[1745590940707,1.25503545,606.29,603.67,0.30387315]
[1745590940900,1.25503545,606.29,603.68,0.30383151]
[1745590941708,1.25503545,606.29,603.67,0.30387315]
[1745590941909,0.28777811,606.46,603.69,0.30383431]
[1745590942102,0.28777811,606.46,603.7,0.30383431]
[1745590942305,0.28777811,606.46,603.68,0.30383431]
[1745590942507,0.28777811,606.46,603.69,0.30383431]
[1745590942707,0.28777811,606.46,603.68,0.30383431]
[1745590942907,0.28777811,606.46,603.67,0.30387315]
[1745590943110,0.28777811,606.46,603.69,0.30392792]
[1745590943408,0.28777811,606.46,603.67,0.30387315]
[1745590943703,0.28777811,606.46,603.68,0.3039467]
[1745590944610,0.28777811,606.46,603.67,0.30387315]
[1745590947317,0.28777811,606.46,603.68,0.30394798]
[1745590948014,0.28777811,606.46,603.67,0.30387315]
[1745590948518,1.25503545,606.55,603.67,0.30387315]
[1745590948816,0.28782572,606.45,603.67,0.30387315]
[1745590949218,1.25503545,606.47,603.67,0.30387315]
[1745590951019,0.28782096,606.46,603.68,0.30395224]
[1745590951620,1.25503545,606.52,603.67,0.30387315]
[1745590951814,0.28784476,606.45,603.67,0.30387315]
[1745590954521,1.25503545,606.18,603.67,0.30387315]
[1745590954723,1.25503545,606.18,603.68,0.30396363]
[1745590956723,1.25503545,606.18,603.67,0.30387315]
[1745590956924,1.25503545,606.18,603.68,0.30396061]
[1745590957918,2.13721831,606.89,603.68,0.30396061]
[1745590957919,1.25503545,606.15,603.68,0.30396061]
[1745590958934,0.28786143,606.14,603.68,0.30396061]
[1745590959826,0.28786143,606.14,603.67,2.04473458]
[1745590960023,0.28786143,606.14,603.68,0.30394775]
[1745590960227,1.25503545,605.86,603.68,0.30394775]
[1745590960922,1.25503545,605.86,603.69,0.30394775]
[1745590961127,1.25503545,605.86,603.7,0.30394775]
[1745590961326,1.25503545,605.86,603.68,0.30394775]